[Event "Titled Tuesday Blitz July 18 Early 2023"]
[White "Dwilewicz, Katarzyna"]
[Black "Novikov, Evgenij"]
[WhiteFideId "1148486"]
[BlackFideId "4125380"]
[WhiteElo "2327"]
[BlackElo "2483"]
[Result "1-0"]
[Round "10"]
[TimeControl "180+2"]
[Date "2023.07.18"]
[WhiteClock "0:00:47"]
[BlackClock "0:00:00"]
[Board "112"]

1. e4 {[%clk 0:03:00]}  c5 {[%clk 0:02:59]} 2. Nf3 {[%clk 0:03:00]}  g6 {[%clk 0:02:59]} 3. d4 {[%clk 0:02:57]}  cxd4 {[%clk 0:02:59]} 4. Qxd4 {[%clk 0:02:57]}  Nf6 {[%clk 0:02:57]} 5. e5 {[%clk 0:02:58]}  Nc6 {[%clk 0:02:57]} 6. Qh4 {[%clk 0:02:52]}  Nxe5 {[%clk 0:02:48]} 7. Nxe5 {[%clk 0:02:48]}  Qa5+ {[%clk 0:02:49]} 8. Nc3 {[%clk 0:02:47]}  Qxe5+ {[%clk 0:02:49]} 9. Be2 {[%clk 0:02:47]}  Bg7 {[%clk 0:02:40]} 10. Bh6 {[%clk 0:02:33]}  Bxh6 {[%clk 0:02:31]} 11. Qxh6 {[%clk 0:02:33]}  d6 {[%clk 0:02:21]} 12. O-O-O {[%clk 0:02:31]}  Bf5 {[%clk 0:02:07]} 13. Bb5+ {[%clk 0:02:21]}  Bd7 {[%clk 0:01:21]} 14. Rhe1 {[%clk 0:02:20]}  Qf5 {[%clk 0:01:15]} 15. Qg7 {[%clk 0:01:16]}  O-O-O {[%clk 0:00:45]} 16. Bxd7+ {[%clk 0:01:07]}  Nxd7 {[%clk 0:00:45]} 17. Nd5 {[%clk 0:01:04]}  Qxf2 {[%clk 0:00:39]} 18. Rxe7 {[%clk 0:00:54]}  Kb8 {[%clk 0:00:33]} 19. Rxf7 {[%clk 0:00:51]}  Qxg2 {[%clk 0:00:16]} 20. Rxd7 {[%clk 0:00:48]}  Rxd7 {[%clk 0:00:00]} 21. Qxh8+ {[%clk 0:00:47]} 1-0


[Site "https://www.chess.com"]

[Event "Titled Tuesday Blitz July 18 Early 2023"]
[White "Spichkin, Alexander"]
[Black "Liu, Casper"]
[WhiteFideId "4144074"]
[BlackFideId "1454153"]
[WhiteElo "2303"]
[BlackElo "2445"]
[Result "0-1"]
[Round "10"]
[TimeControl "180+2"]
[Date "2023.07.18"]
[WhiteClock "0:02:04"]
[BlackClock "0:02:01"]
[Board "113"]

1. f4 {[%clk 0:03:00]}  d5 {[%clk 0:02:55]} 2. Nf3 {[%clk 0:03:00]}  Nd7 {[%clk 0:02:54]} 3. e3 {[%clk 0:03:00]}  e6 {[%clk 0:02:53]} 4. b3 {[%clk 0:02:59]}  Ngf6 {[%clk 0:02:52]} 5. Bb2 {[%clk 0:02:59]}  Be7 {[%clk 0:02:53]} 6. Bd3 {[%clk 0:02:59]}  Nc5 {[%clk 0:02:52]} 7. Be2 {[%clk 0:02:59]}  O-O {[%clk 0:02:52]} 8. O-O {[%clk 0:02:59]}  a5 {[%clk 0:02:51]} 9. Ne5 {[%clk 0:03:00]}  a4 {[%clk 0:02:51]} 10. Rf3 {[%clk 0:02:58]}  axb3 {[%clk 0:02:49]} 11. axb3 {[%clk 0:02:56]}  Rxa1 {[%clk 0:02:50]} 12. Bxa1 {[%clk 0:02:56]}  Nfe4 {[%clk 0:02:44]} 13. Rh3 {[%clk 0:02:51]}  f6 {[%clk 0:02:42]} 14. Nd3 {[%clk 0:02:49]}  e5 {[%clk 0:02:42]} 15. Bg4 {[%clk 0:02:47]}  Nxd3 {[%clk 0:02:30]} 16. cxd3 {[%clk 0:02:46]}  Nc5 {[%clk 0:02:25]} 17. Bxc8 {[%clk 0:02:40]}  Qxc8 {[%clk 0:02:22]} 18. Qh5 {[%clk 0:02:40]}  h6 {[%clk 0:02:21]} 19. fxe5 {[%clk 0:02:41]}  Nxd3 {[%clk 0:02:17]} 20. exf6 {[%clk 0:02:38]}  Bxf6 {[%clk 0:02:17]} 21. Bxf6 {[%clk 0:02:36]}  Qe6 {[%clk 0:02:02]} 22. Bd4 {[%clk 0:02:30]}  Nf4 {[%clk 0:02:01]} 23. Qh4 {[%clk 0:02:06]}  Ne2+ {[%clk 0:02:00]} 24. Kh1 {[%clk 0:02:04]}  Rf1# {[%clk 0:02:01]} 0-1


[Site "https://www.chess.com"]

[Event "Titled Tuesday Blitz July 18 Early 2023"]
[White "Chemin, Justo Reinaldo"]
[Black "Zacurdajev, Dmitry"]
[WhiteFideId "2101580"]
[BlackFideId "4196309"]
[WhiteElo "2274"]
[BlackElo "2426"]
[Result "0-1"]
[Round "10"]
[TimeControl "180+2"]
[Date "2023.07.18"]
[WhiteClock "0:00:20"]
[BlackClock "0:00:13"]
[Board "115"]

1. e4 {[%clk 0:03:00]}  c6 {[%clk 0:02:52]} 2. d4 {[%clk 0:02:59]}  d5 {[%clk 0:02:53]} 3. exd5 {[%clk 0:02:59]}  cxd5 {[%clk 0:02:54]} 4. Bd3 {[%clk 0:03:00]}  Nc6 {[%clk 0:02:54]} 5. c3 {[%clk 0:03:00]}  Nf6 {[%clk 0:02:52]} 6. h3 {[%clk 0:03:00]}  g6 {[%clk 0:02:51]} 7. Bf4 {[%clk 0:02:59]}  Bf5 {[%clk 0:02:49]} 8. Nf3 {[%clk 0:02:54]}  Bxd3 {[%clk 0:02:45]} 9. Qxd3 {[%clk 0:02:53]}  Bg7 {[%clk 0:02:45]} 10. Nbd2 {[%clk 0:02:53]}  O-O {[%clk 0:02:45]} 11. O-O {[%clk 0:02:52]}  a6 {[%clk 0:02:46]} 12. Rfe1 {[%clk 0:02:52]}  Rc8 {[%clk 0:02:45]} 13. Re2 {[%clk 0:02:46]}  Na5 {[%clk 0:02:36]} 14. Rae1 {[%clk 0:02:42]}  e6 {[%clk 0:02:33]} 15. Ne5 {[%clk 0:02:38]}  b5 {[%clk 0:02:15]} 16. g4 {[%clk 0:02:33]}  Nc4 {[%clk 0:02:11]} 17. Ndxc4 {[%clk 0:02:10]}  dxc4 {[%clk 0:01:59]} 18. Qg3 {[%clk 0:02:05]}  Nd5 {[%clk 0:01:59]} 19. Bd2 {[%clk 0:02:02]}  a5 {[%clk 0:01:55]} 20. h4 {[%clk 0:02:01]}  b4 {[%clk 0:01:54]} 21. h5 {[%clk 0:02:01]}  Qe7 {[%clk 0:01:39]} 22. hxg6 {[%clk 0:01:44]}  hxg6 {[%clk 0:01:40]} 23. g5 {[%clk 0:01:41]}  a4 {[%clk 0:01:27]} 24. Ng4 {[%clk 0:01:41]}  a3 {[%clk 0:01:19]} 25. bxa3 {[%clk 0:01:30]}  bxc3 {[%clk 0:01:17]} 26. Bc1 {[%clk 0:01:30]}  Bxd4 {[%clk 0:01:05]} 27. Nh6+ {[%clk 0:01:25]}  Kg7 {[%clk 0:01:03]} 28. Rd1 {[%clk 0:01:11]}  Qa7 {[%clk 0:00:51]} 29. Ng4 {[%clk 0:00:58]}  Rh8 {[%clk 0:00:44]} 30. Re4 {[%clk 0:00:48]}  e5 {[%clk 0:00:27]} 31. Nxe5 {[%clk 0:00:46]}  Bxf2+ {[%clk 0:00:12]} 32. Qxf2 {[%clk 0:00:46]}  Rh1+ {[%clk 0:00:13]} 33. Kxh1 {[%clk 0:00:31]}  Qxf2 {[%clk 0:00:13]} 34. Rxd5 {[%clk 0:00:20]}  Rh8+ {[%clk 0:00:13]} 0-1


[Site "https://www.chess.com"]

[Event "Titled Tuesday Blitz July 18 Early 2023"]
[White "Zaksaite, Salomeja"]
[Black "Nunez V, Gustavo Eduardo"]
[WhiteFideId "12801496"]
[BlackFideId "4403690"]
[WhiteElo "2295"]
[BlackElo "2430"]
[Result "0-1"]
[Round "10"]
[TimeControl "180+2"]
[Date "2023.07.18"]
[WhiteClock "0:00:00"]
[BlackClock "0:00:23"]
[Board "121"]

1. e4 {[%clk 0:02:56]}  c5 {[%clk 0:02:59]} 2. Nf3 {[%clk 0:02:55]}  Nc6 {[%clk 0:02:57]} 3. Bb5 {[%clk 0:02:54]}  g6 {[%clk 0:02:56]} 4. O-O {[%clk 0:02:53]}  Bg7 {[%clk 0:02:56]} 5. Re1 {[%clk 0:02:52]}  e5 {[%clk 0:02:56]} 6. Bxc6 {[%clk 0:02:34]}  dxc6 {[%clk 0:02:57]} 7. d3 {[%clk 0:02:32]}  Qc7 {[%clk 0:02:56]} 8. Be3 {[%clk 0:02:27]}  b6 {[%clk 0:02:55]} 9. a3 {[%clk 0:02:25]}  a5 {[%clk 0:02:50]} 10. Nbd2 {[%clk 0:02:19]}  Be6 {[%clk 0:02:49]} 11. b4 {[%clk 0:02:16]}  cxb4 {[%clk 0:02:32]} 12. axb4 {[%clk 0:02:14]}  a4 {[%clk 0:02:31]} 13. c4 {[%clk 0:02:13]}  b5 {[%clk 0:02:31]} 14. Qc2 {[%clk 0:02:04]}  Qd7 {[%clk 0:02:14]} 15. Nb3 {[%clk 0:01:59]}  Ne7 {[%clk 0:02:02]} 16. Nc5 {[%clk 0:01:59]}  Qc8 {[%clk 0:02:03]} 17. Nxe6 {[%clk 0:01:49]}  Qxe6 {[%clk 0:02:02]} 18. Bc5 {[%clk 0:01:39]}  O-O {[%clk 0:01:59]} 19. cxb5 {[%clk 0:01:30]}  cxb5 {[%clk 0:02:00]} 20. d4 {[%clk 0:01:29]}  exd4 {[%clk 0:01:59]} 21. Nxd4 {[%clk 0:01:29]}  Qd7 {[%clk 0:01:48]} 22. Rad1 {[%clk 0:01:28]}  Bxd4 {[%clk 0:01:39]} 23. Rxd4 {[%clk 0:01:27]}  Qc7 {[%clk 0:01:36]} 24. Red1 {[%clk 0:01:24]}  Rfd8 {[%clk 0:01:25]} 25. Qb2 {[%clk 0:01:21]}  Nc6 {[%clk 0:01:18]} 26. Rd6 {[%clk 0:01:15]}  Rxd6 {[%clk 0:01:15]} 27. Bxd6 {[%clk 0:01:14]}  Qd7 {[%clk 0:01:05]} 28. Rd5 {[%clk 0:00:59]}  a3 {[%clk 0:01:02]} 29. Qa1 {[%clk 0:00:58]}  Qe6 {[%clk 0:00:56]} 30. f3 {[%clk 0:00:53]}  a2 {[%clk 0:00:49]} 31. h4 {[%clk 0:00:51]}  f5 {[%clk 0:00:40]} 32. Bc5 {[%clk 0:00:33]}  fxe4 {[%clk 0:00:37]} 33. Rd6 {[%clk 0:00:26]}  Qe5 {[%clk 0:00:34]} 34. Rd1 {[%clk 0:00:07]}  Qxa1 {[%clk 0:00:30]} 35. Rxa1 {[%clk 0:00:07]}  exf3 {[%clk 0:00:31]} 36. gxf3 {[%clk 0:00:06]}  Ne5 {[%clk 0:00:32]} 37. Kf2 {[%clk 0:00:05]}  Ra3 {[%clk 0:00:27]} 38. Ke2 {[%clk 0:00:03]}  Nxf3 {[%clk 0:00:24]} 39. Be3 {[%clk 0:00:02]}  Nxh4 {[%clk 0:00:23]} 40. Bd4 {[%clk 0:00:01]}  Nf5 {[%clk 0:00:23]} 41. Bb2 {[%clk 0:00:00]}  Ra4 {[%clk 0:00:23]} 0-1


[Site "https://www.chess.com"]

[Event "Titled Tuesday Blitz July 18 Early 2023"]
[White "Goswami, Vedant"]
[Black "Wang, Alexander J"]
[WhiteFideId "5003725"]
[BlackFideId "30955270"]
[WhiteElo "2385"]
[BlackElo "2288"]
[Result "0-1"]
[Round "10"]
[TimeControl "180+2"]
[Date "2023.07.18"]
[WhiteClock "0:00:27"]
[BlackClock "0:00:29"]
[Board "123"]

1. d4 {[%clk 0:03:00]}  d5 {[%clk 0:02:53]} 2. Nf3 {[%clk 0:02:59]}  c5 {[%clk 0:02:51]} 3. e3 {[%clk 0:02:56]}  Nc6 {[%clk 0:02:51]} 4. c4 {[%clk 0:02:50]}  e6 {[%clk 0:02:48]} 5. Nc3 {[%clk 0:02:49]}  Nf6 {[%clk 0:02:48]} 6. a3 {[%clk 0:02:47]}  a6 {[%clk 0:02:47]} 7. cxd5 {[%clk 0:02:38]}  exd5 {[%clk 0:02:37]} 8. Be2 {[%clk 0:02:37]}  c4 {[%clk 0:02:33]} 9. Ne5 {[%clk 0:02:35]}  Bd7 {[%clk 0:02:31]} 10. f4 {[%clk 0:02:34]}  b5 {[%clk 0:02:29]} 11. Bf3 {[%clk 0:02:31]}  Ne7 {[%clk 0:02:08]} 12. g4 {[%clk 0:02:19]}  Nc6 {[%clk 0:01:24]} 13. g5 {[%clk 0:02:12]}  Ne4 {[%clk 0:01:09]} 14. Nxe4 {[%clk 0:01:54]}  dxe4 {[%clk 0:01:05]} 15. Bxe4 {[%clk 0:01:54]}  Nxe5 {[%clk 0:01:01]} 16. dxe5 {[%clk 0:01:52]}  Bc5 {[%clk 0:00:55]} 17. Qd5 {[%clk 0:01:44]}  Rc8 {[%clk 0:00:50]} 18. Bd2 {[%clk 0:01:38]}  Qb6 {[%clk 0:00:47]} 19. Bb4 {[%clk 0:00:51]}  Bxb4+ {[%clk 0:00:36]} 20. axb4 {[%clk 0:00:48]}  Qxe3+ {[%clk 0:00:33]} 21. Kf1 {[%clk 0:00:47]}  Bc6 {[%clk 0:00:29]} 22. Qxc6+ {[%clk 0:00:44]}  Rxc6 {[%clk 0:00:28]} 23. Bxc6+ {[%clk 0:00:45]}  Ke7 {[%clk 0:00:28]} 24. Rd1 {[%clk 0:00:39]}  Rd8 {[%clk 0:00:27]} 25. Rxd8 {[%clk 0:00:37]}  Kxd8 {[%clk 0:00:28]} 26. Kg2 {[%clk 0:00:37]}  Qd2+ {[%clk 0:00:28]} 27. Kg3 {[%clk 0:00:36]}  Qxb2 {[%clk 0:00:28]} 28. Rd1+ {[%clk 0:00:34]}  Kc7 {[%clk 0:00:28]} 29. Bd5 {[%clk 0:00:32]}  c3 {[%clk 0:00:29]} 30. Bxf7 {[%clk 0:00:27]}  c2 {[%clk 0:00:29]} 0-1


[Site "https://www.chess.com"]

[Event "Titled Tuesday Blitz July 18 Early 2023"]
[White "Rodriguez Santiago, Jaime"]
[Black "Torres Hernandez, Leslie Carolin"]
[WhiteFideId "3100898"]
[BlackFideId "8400504"]
[WhiteElo "2361"]
[BlackElo "2281"]
[Result "1-0"]
[Round "10"]
[TimeControl "180+2"]
[Date "2023.07.18"]
[WhiteClock "0:01:57"]
[BlackClock "0:01:36"]
[Board "125"]

1. c4 {[%clk 0:03:00]}  e5 {[%clk 0:02:56]} 2. Nc3 {[%clk 0:03:00]}  Nc6 {[%clk 0:02:55]} 3. g3 {[%clk 0:03:00]}  f5 {[%clk 0:02:52]} 4. Bg2 {[%clk 0:03:00]}  Nf6 {[%clk 0:02:52]} 5. d3 {[%clk 0:02:58]}  Bc5 {[%clk 0:02:51]} 6. e3 {[%clk 0:02:57]}  d6 {[%clk 0:02:51]} 7. Nge2 {[%clk 0:02:57]}  O-O {[%clk 0:02:51]} 8. O-O {[%clk 0:02:56]}  Qe8 {[%clk 0:02:47]} 9. d4 {[%clk 0:02:47]}  Bb6 {[%clk 0:02:42]} 10. dxe5 {[%clk 0:02:36]}  Nxe5 {[%clk 0:02:38]} 11. b3 {[%clk 0:02:28]}  Be6 {[%clk 0:02:36]} 12. Nf4 {[%clk 0:02:25]}  Bf7 {[%clk 0:02:36]} 13. Bxb7 {[%clk 0:02:23]}  Rb8 {[%clk 0:02:36]} 14. Bg2 {[%clk 0:02:22]}  Rd8 {[%clk 0:02:22]} 15. Bb2 {[%clk 0:02:20]}  c6 {[%clk 0:02:17]} 16. Qc2 {[%clk 0:02:15]}  d5 {[%clk 0:02:08]} 17. cxd5 {[%clk 0:02:10]}  cxd5 {[%clk 0:02:09]} 18. Rad1 {[%clk 0:02:08]}  Ne4 {[%clk 0:02:03]} 19. Ncxd5 {[%clk 0:01:57]}  g5 {[%clk 0:01:36]} 1-0


[Site "https://www.chess.com"]

[Event "Titled Tuesday Blitz July 18 Early 2023"]
[White "Sovetbekova, Nurai"]
[Black "Magallanes, Rey Jomar"]
[WhiteFideId "13801910"]
[BlackFideId "5205948"]
[WhiteElo "2350"]
[BlackElo "2267"]
[Result "1-0"]
[Round "10"]
[TimeControl "180+2"]
[Date "2023.07.18"]
[WhiteClock "0:01:10"]
[BlackClock "0:01:49"]
[Board "126"]

1. d4 {[%clk 0:03:00]}  d5 {[%clk 0:02:58]} 2. c4 {[%clk 0:03:00]}  e6 {[%clk 0:02:58]} 3. Nc3 {[%clk 0:03:00]}  Nf6 {[%clk 0:02:58]} 4. Bf4 {[%clk 0:02:59]}  Nbd7 {[%clk 0:02:55]} 5. e3 {[%clk 0:02:59]}  dxc4 {[%clk 0:02:56]} 6. Bxc4 {[%clk 0:02:59]}  Nb6 {[%clk 0:02:55]} 7. Bd3 {[%clk 0:02:53]}  Bd6 {[%clk 0:02:54]} 8. Bg5 {[%clk 0:02:52]}  Be7 {[%clk 0:02:54]} 9. Nf3 {[%clk 0:02:52]}  Nfd5 {[%clk 0:02:53]} 10. Bxe7 {[%clk 0:02:48]}  Qxe7 {[%clk 0:02:54]} 11. Nxd5 {[%clk 0:02:47]}  Nxd5 {[%clk 0:02:53]} 12. O-O {[%clk 0:02:47]}  O-O {[%clk 0:02:53]} 13. Rc1 {[%clk 0:02:46]}  c6 {[%clk 0:02:53]} 14. a3 {[%clk 0:02:44]}  Bd7 {[%clk 0:02:51]} 15. Qc2 {[%clk 0:02:44]}  g6 {[%clk 0:02:48]} 16. Ne5 {[%clk 0:02:37]}  Be8 {[%clk 0:02:44]} 17. b4 {[%clk 0:02:32]}  f5 {[%clk 0:02:43]} 18. e4 {[%clk 0:02:22]}  Nf4 {[%clk 0:02:41]} 19. Bc4 {[%clk 0:02:15]}  b5 {[%clk 0:02:36]} 20. Bb3 {[%clk 0:02:10]}  Kh8 {[%clk 0:02:35]} 21. exf5 {[%clk 0:02:03]}  gxf5 {[%clk 0:02:30]} 22. Kh1 {[%clk 0:01:53]}  Rg8 {[%clk 0:02:27]} 23. g3 {[%clk 0:01:52]}  Nd5 {[%clk 0:02:18]} 24. Nxc6 {[%clk 0:01:48]}  Qb7 {[%clk 0:02:16]} 25. Bxd5 {[%clk 0:01:45]}  exd5 {[%clk 0:02:15]} 26. Ne5 {[%clk 0:01:44]}  Bg6 {[%clk 0:02:10]} 27. Qc7 {[%clk 0:01:32]}  Qa6 {[%clk 0:02:06]} 28. Nf7+ {[%clk 0:01:16]}  Bxf7 {[%clk 0:02:05]} 29. Qxf7 {[%clk 0:01:17]}  Qxa3 {[%clk 0:01:58]} 30. Rc7 {[%clk 0:01:11]}  Qe3 {[%clk 0:01:49]} 31. Qxh7# {[%clk 0:01:10]} 1-0


[Site "https://www.chess.com"]

[Event "Titled Tuesday Blitz July 18 Early 2023"]
[White "Saucey, Michel"]
[Black "Hernandez Bermudez, Ulises Eduardo"]
[WhiteFideId "601845"]
[BlackFideId "3902510"]
[WhiteElo "2322"]
[BlackElo "2242"]
[Result "1/2-1/2"]
[Round "10"]
[TimeControl "180+2"]
[Date "2023.07.18"]
[WhiteClock "0:00:43"]
[BlackClock "0:00:13"]
[Board "130"]

1. d4 {[%clk 0:03:00]}  d5 {[%clk 0:03:00]} 2. Nf3 {[%clk 0:03:00]}  Nf6 {[%clk 0:02:59]} 3. c4 {[%clk 0:03:01]}  c6 {[%clk 0:02:59]} 4. Nc3 {[%clk 0:03:00]}  e6 {[%clk 0:02:59]} 5. e3 {[%clk 0:03:00]}  Bd6 {[%clk 0:02:58]} 6. Bd3 {[%clk 0:02:57]}  Nbd7 {[%clk 0:02:55]} 7. e4 {[%clk 0:02:56]}  dxe4 {[%clk 0:02:53]} 8. Nxe4 {[%clk 0:02:56]}  Nxe4 {[%clk 0:02:54]} 9. Bxe4 {[%clk 0:02:56]}  O-O {[%clk 0:02:53]} 10. O-O {[%clk 0:02:55]}  c5 {[%clk 0:02:52]} 11. dxc5 {[%clk 0:02:42]}  Nxc5 {[%clk 0:02:50]} 12. Bc2 {[%clk 0:02:30]}  b6 {[%clk 0:02:44]} 13. b4 {[%clk 0:02:23]}  Nb7 {[%clk 0:02:31]} 14. Qd3 {[%clk 0:02:22]}  g6 {[%clk 0:02:31]} 15. Bh6 {[%clk 0:02:15]}  Re8 {[%clk 0:02:29]} 16. Qc3 {[%clk 0:02:11]}  f6 {[%clk 0:02:28]} 17. Rad1 {[%clk 0:02:06]}  Qe7 {[%clk 0:02:22]} 18. a3 {[%clk 0:02:05]}  g5 {[%clk 0:02:15]} 19. h4 {[%clk 0:02:02]}  g4 {[%clk 0:02:10]} 20. Nd4 {[%clk 0:02:01]}  Be5 {[%clk 0:02:10]} 21. Qe3 {[%clk 0:01:47]}  Qf7 {[%clk 0:01:56]} 22. Be4 {[%clk 0:01:40]}  Qh5 {[%clk 0:01:47]} 23. Bf4 {[%clk 0:01:38]}  Qxh4 {[%clk 0:01:37]} 24. Bxe5 {[%clk 0:01:36]}  fxe5 {[%clk 0:01:37]} 25. Nc6 {[%clk 0:01:33]}  Qf6 {[%clk 0:01:25]} 26. g3 {[%clk 0:01:22]}  Qg7 {[%clk 0:01:13]} 27. f3 {[%clk 0:01:19]}  gxf3 {[%clk 0:01:10]} 28. Rxf3 {[%clk 0:01:19]}  Bd7 {[%clk 0:01:07]} 29. Nxe5 {[%clk 0:01:15]}  Ba4 {[%clk 0:01:03]} 30. Rdf1 {[%clk 0:01:14]}  Nd6 {[%clk 0:00:44]} 31. Bxa8 {[%clk 0:01:10]}  Rxa8 {[%clk 0:00:45]} 32. Qd4 {[%clk 0:00:48]}  Nf5 {[%clk 0:00:35]} 33. Rxf5 {[%clk 0:00:48]}  Qxg3+ {[%clk 0:00:34]} 34. Kh1 {[%clk 0:00:46]}  Qh3+ {[%clk 0:00:33]} 35. Kg1 {[%clk 0:00:45]}  Qg3+ {[%clk 0:00:26]} 36. Kh1 {[%clk 0:00:43]}  Qh3+ {[%clk 0:00:13]} 37. Kg1 {[%clk 0:00:43]}  Qg3+ {[%clk 0:00:13]} 1/2-1/2


[Site "https://www.chess.com"]

[Event "Titled Tuesday Blitz July 18 Early 2023"]
[White "Sarkar, Justin"]
[Black "kiwibobo"]
[WhiteFideId "2010011"]
[WhiteElo "2238"]
[BlackElo "2312"]
[Result "0-1"]
[Round "10"]
[TimeControl "180+2"]
[Date "2023.07.18"]
[WhiteClock "0:00:00"]
[BlackClock "0:02:01"]
[Board "131"]

1. e4 {[%clk 0:02:41]}  e5 {[%clk 0:02:59]} 2. f4 {[%clk 0:02:40]}  exf4 {[%clk 0:02:59]} 3. Nf3 {[%clk 0:02:41]}  g5 {[%clk 0:03:00]} 4. Nc3 {[%clk 0:02:40]}  Bg7 {[%clk 0:02:58]} 5. h4 {[%clk 0:02:33]}  h6 {[%clk 0:02:49]} 6. hxg5 {[%clk 0:02:29]}  hxg5 {[%clk 0:02:49]} 7. Rxh8 {[%clk 0:02:29]}  Bxh8 {[%clk 0:02:50]} 8. d4 {[%clk 0:01:00]}  g4 {[%clk 0:02:50]} 9. Ne5 {[%clk 0:00:57]}  Qh4+ {[%clk 0:02:44]} 10. Ke2 {[%clk 0:00:14]}  d6 {[%clk 0:02:36]} 11. Bxf4 {[%clk 0:00:13]}  dxe5 {[%clk 0:02:33]} 12. dxe5 {[%clk 0:00:13]}  Be6 {[%clk 0:02:32]} 13. Nd5 {[%clk 0:00:07]}  Na6 {[%clk 0:02:18]} 14. Qd2 {[%clk 0:00:06]}  O-O-O {[%clk 0:02:15]} 15. Bg5 {[%clk 0:00:05]}  Qg3 {[%clk 0:02:06]} 16. Bxd8 {[%clk 0:00:05]}  Qxe5 {[%clk 0:02:05]} 17. Bg5 {[%clk 0:00:00]}  Qxe4+ {[%clk 0:02:01]} 0-1


[Site "https://www.chess.com"]

[Event "Titled Tuesday Blitz July 18 Early 2023"]
[White "Feliz Dotel, Dewar Bienvenido"]
[Black "Holtel, Jasper"]
[WhiteFideId "6402801"]
[BlackFideId "12956376"]
[WhiteElo "2068"]
[BlackElo "2303"]
[Result "0-1"]
[Round "10"]
[TimeControl "180+2"]
[Date "2023.07.18"]
[WhiteClock "0:00:00"]
[BlackClock "0:00:08"]
[Board "134"]

1. d4 {[%clk 0:03:00]}  Nf6 {[%clk 0:02:59]} 2. e3 {[%clk 0:03:00]}  g6 {[%clk 0:03:00]} 3. Nf3 {[%clk 0:02:57]}  Bg7 {[%clk 0:03:00]} 4. Be2 {[%clk 0:02:58]}  O-O {[%clk 0:03:00]} 5. b4 {[%clk 0:02:58]}  d6 {[%clk 0:03:00]} 6. a4 {[%clk 0:02:56]}  Nbd7 {[%clk 0:03:00]} 7. Bb2 {[%clk 0:02:55]}  Re8 {[%clk 0:02:57]} 8. Nbd2 {[%clk 0:02:56]}  e5 {[%clk 0:02:56]} 9. dxe5 {[%clk 0:02:54]}  dxe5 {[%clk 0:02:57]} 10. c4 {[%clk 0:02:50]}  a5 {[%clk 0:02:46]} 11. bxa5 {[%clk 0:02:39]}  Rxa5 {[%clk 0:02:45]} 12. Nb3 {[%clk 0:02:40]}  Ra8 {[%clk 0:02:43]} 13. O-O {[%clk 0:02:38]}  e4 {[%clk 0:02:23]} 14. Ne5 {[%clk 0:02:13]}  Nxe5 {[%clk 0:01:37]} 15. Qxd8 {[%clk 0:01:54]}  Rxd8 {[%clk 0:01:36]} 16. Bxe5 {[%clk 0:01:53]}  c6 {[%clk 0:01:25]} 17. Rad1 {[%clk 0:01:41]}  Bg4 {[%clk 0:01:17]} 18. Rxd8+ {[%clk 0:01:34]}  Rxd8 {[%clk 0:01:15]} 19. Bxf6 {[%clk 0:01:33]}  Ra8 {[%clk 0:00:53]} 20. Bxg7 {[%clk 0:01:27]}  Bxe2 {[%clk 0:00:53]} 21. Re1 {[%clk 0:01:23]}  Bxc4 {[%clk 0:00:53]} 22. Nc5 {[%clk 0:01:21]}  Kxg7 {[%clk 0:00:51]} 23. Nxb7 {[%clk 0:01:19]}  Rxa4 {[%clk 0:00:50]} 24. Nc5 {[%clk 0:01:17]}  Ra2 {[%clk 0:00:42]} 25. Nxe4 {[%clk 0:01:15]}  Bd5 {[%clk 0:00:39]} 26. Nc3 {[%clk 0:01:15]}  Rd2 {[%clk 0:00:39]} 27. Nxd5 {[%clk 0:01:14]}  cxd5 {[%clk 0:00:39]} 28. Rc1 {[%clk 0:01:06]}  d4 {[%clk 0:00:39]} 29. e4 {[%clk 0:01:05]}  Kf6 {[%clk 0:00:38]} 30. Kf1 {[%clk 0:01:04]}  d3 {[%clk 0:00:37]} 31. f3 {[%clk 0:00:59]}  Ke5 {[%clk 0:00:37]} 32. Rc7 {[%clk 0:00:37]}  Kf4 {[%clk 0:00:31]} 33. Ke1 {[%clk 0:00:31]}  Rxg2 {[%clk 0:00:29]} 34. Rxf7+ {[%clk 0:00:17]}  Ke3 {[%clk 0:00:28]} 35. Kf1 {[%clk 0:00:18]}  d2 {[%clk 0:00:15]} 36. Rd7 {[%clk 0:00:18]}  Rxh2 {[%clk 0:00:12]} 37. Kg1 {[%clk 0:00:18]}  Re2 {[%clk 0:00:12]} 38. e5 {[%clk 0:00:14]}  Re1+ {[%clk 0:00:11]} 39. Kg2 {[%clk 0:00:07]}  d1=Q {[%clk 0:00:12]} 40. Rxd1 {[%clk 0:00:04]}  Rxd1 {[%clk 0:00:12]} 41. Kg3 {[%clk 0:00:03]}  Rd8 {[%clk 0:00:09]} 42. Kg4 {[%clk 0:00:03]}  Rf8 {[%clk 0:00:08]} 43. f4 {[%clk 0:00:00]}  Rxf4+ {[%clk 0:00:08]} 0-1


[Site "https://www.chess.com"]

[Event "Titled Tuesday Blitz July 18 Early 2023"]
[White "campochess"]
[Black "Schut, Han"]
[BlackFideId "1005561"]
[WhiteElo "2130"]
[BlackElo "2294"]
[Result "1-0"]
[Round "10"]
[TimeControl "180+2"]
[Date "2023.07.18"]
[WhiteClock "0:00:45"]
[BlackClock "0:00:00"]
[Board "137"]

1. d4 {[%clk 0:02:57]}  Nf6 {[%clk 0:02:59]} 2. Bg5 {[%clk 0:02:56]}  d5 {[%clk 0:02:59]} 3. Nd2 {[%clk 0:02:55]}  g6 {[%clk 0:02:57]} 4. Bxf6 {[%clk 0:02:52]}  exf6 {[%clk 0:02:58]} 5. e3 {[%clk 0:02:52]}  Bd6 {[%clk 0:02:58]} 6. g3 {[%clk 0:02:51]}  c6 {[%clk 0:02:56]} 7. Bg2 {[%clk 0:02:50]}  O-O {[%clk 0:02:56]} 8. Ne2 {[%clk 0:02:50]}  Re8 {[%clk 0:02:56]} 9. O-O {[%clk 0:02:50]}  Bg4 {[%clk 0:02:50]} 10. h3 {[%clk 0:02:46]}  Bxe2 {[%clk 0:02:49]} 11. Qxe2 {[%clk 0:02:46]}  Qb6 {[%clk 0:02:50]} 12. Nb3 {[%clk 0:02:43]}  a5 {[%clk 0:02:42]} 13. Qd3 {[%clk 0:02:42]}  a4 {[%clk 0:02:38]} 14. Nd2 {[%clk 0:02:42]}  Na6 {[%clk 0:02:30]} 15. c4 {[%clk 0:02:34]}  dxc4 {[%clk 0:02:05]} 16. Nxc4 {[%clk 0:02:33]}  Qb5 {[%clk 0:02:02]} 17. Rfd1 {[%clk 0:02:25]}  Bc7 {[%clk 0:01:46]} 18. Bf1 {[%clk 0:02:24]}  Nb4 {[%clk 0:01:42]} 19. Qd2 {[%clk 0:02:22]}  Nd5 {[%clk 0:01:14]} 20. Nd6 {[%clk 0:02:15]}  Qb6 {[%clk 0:01:14]} 21. Nxe8 {[%clk 0:02:14]}  Rxe8 {[%clk 0:01:15]} 22. Rab1 {[%clk 0:02:04]}  Bb8 {[%clk 0:01:02]} 23. b3 {[%clk 0:02:04]}  a3 {[%clk 0:01:01]} 24. b4 {[%clk 0:02:03]}  Qc7 {[%clk 0:00:56]} 25. Rdc1 {[%clk 0:02:01]}  Nxe3 {[%clk 0:00:42]} 26. fxe3 {[%clk 0:01:58]}  Qxg3+ {[%clk 0:00:42]} 27. Qg2 {[%clk 0:01:58]}  Qxe3+ {[%clk 0:00:43]} 28. Kh1 {[%clk 0:01:57]}  Qf4 {[%clk 0:00:26]} 29. b5 {[%clk 0:01:53]}  Re3 {[%clk 0:00:23]} 30. bxc6 {[%clk 0:01:48]}  Rg3 {[%clk 0:00:18]} 31. Qe2 {[%clk 0:01:42]}  Re3 {[%clk 0:00:10]} 32. Qg2 {[%clk 0:01:37]}  Rg3 {[%clk 0:00:10]} 33. Qc2 {[%clk 0:01:23]}  bxc6 {[%clk 0:00:05]} 34. Rxb8+ {[%clk 0:01:21]}  Qxb8 {[%clk 0:00:06]} 35. Qxc6 {[%clk 0:01:19]}  Qf4 {[%clk 0:00:05]} 36. Rd1 {[%clk 0:01:01]}  Qf2 {[%clk 0:00:02]} 37. Bg2 {[%clk 0:00:55]}  Qxa2 {[%clk 0:00:00]} 38. Qe4 {[%clk 0:00:45]} 1-0


[Site "https://www.chess.com"]